[Event "1st Uppsala Festival 2022"]
[Site "Uppsala"]
[Date "2022.08.14"]
[Round "9.2"]
[White "Sriram, Jha"]
[Black "Sorensen, Hampus"]
[Result "0-1"]
[ECO "D30"]
[WhiteElo "2361"]
[BlackElo "2376"]
[Annotator "TA"]
[PlyCount "46"]
[EventDate "2022.08.09"]
[EventType "tourn"]
[EventCountry "SWE"]
[SourceTitle "playchess.com"]
[Source "ChessBase"]
[SourceQuality "1"]
[TimeControl "5400+30"]

{[%evp 9,46,-9,0,0,0,-1,37,38,33,29,31,19,32,22,27,19,61,57,64,40,64,49,86,22,45,-54,-42,-50,-56,-158,-133,-143,-149,-489,-483,-547,-541,-606,-577]} 1. d4 {[%emt 0:00:21]} Nf6 {[%emt 0:00:17]} 2. Nf3 {[%emt 0:00:31]} d5 {[%emt 0:00:12]} 3. c4 {[%emt 0:00:13]} e6 {[%emt 0:00:14]} 4. Bg5 {[%emt 0:00:06]} Bb4+ {[%emt 0:04:50]} 5. Nbd2 {[%emt 0:00:16]} dxc4 {[%emt 0:00:17]} 6. e3 {[%emt 0:00:43] D30: Queen's Gambit Declined: Systems without Nc3.} b5 {[%emt 0:00:11]} 7. a3 {[%emt 0:00:26]} Ba5 {[%emt 0:09:46]} (7... Bxd2+ $5 8. Nxd2 Bb7 $11) 8. Be2 {[%emt 0:00:06] White is slightly better.} Bb7 {[%emt 0:03:06][%cal Oc7c5]} 9. O-O {[%emt 0:00:05]} O-O {[%emt 0:05:33]} 10. b3 {[%emt 0:00:13] [#]} Bxd2 $146 {[%emt 0:14:02]} ({Predecessor:} 10... c3 11. b4 cxd2 12. bxa5 Qd5 13. Bxf6 gxf6 14. Qxd2 a6 15. Rfc1 Qd6 16. a4 bxa4 17. Rxa4 {1-0 (45) Stupak,K (2584)-Koustav,C (2404) Taleigao 2019}) 11. Nxd2 {[%emt 0:17:16]} c5 {[%emt 0:00:45]} (11... Qd5 $2 12. Bf3 Qxg5 13. Bxb7 $18) 12. dxc5 {[%emt 0:16:14]} cxb3 {[%emt 0:00:38]} (12... Qd5 $2 13. Bf3 Qd7 14. bxc4 $18) 13. Nxb3 {[%emt 0:10:05]} a6 {[%emt 0:01:06]} 14. a4 {[%emt 0:11:04]} Qxd1 {[%emt 0:07:10]} 15. Rfxd1 {[%emt 0:00:58]} ({Of course not} 15. Raxd1 bxa4 16. Na5 Bd5 $11) 15... Bd5 {[%emt 0:01:04] [#]} 16. Bf3 {[%emt 0:12:11]} (16. Rxd5 $1 $16 Nxd5 (16... bxa4 17. Rd3) 17. axb5) 16... bxa4 {[%emt 0:13:18]} (16... Bxb3 {feels hotter.} 17. Bxa8 Bxd1 18. Rxd1 Nbd7) 17. Bxf6 {[%emt 0:05:03]} (17. Na5 $14) 17... axb3 $15 {[%emt 0:02:46]} 18. Bxd5 {[%emt 0:13:43]} exd5 {[%emt 0:00:11]} 19. Be7 {[%emt 0:01:19]} (19. Bc3 $15) 19... Re8 $17 {[%emt 0:00:50]} 20. Bd6 {[%emt 0:01:43] [#]} a5 $1 {[%emt 0:02:10][%cal Ba6a5,Ba5a4][%mdl 32]} 21. Rxd5 $2 {[%emt 0:04:35][%mdl 8192]} (21. Ra4 $17 {nothing else works.}) 21... a4 $19 {[%emt 0:08:28] Black is clearly winning.} 22. Ra3 {[%emt 0:00:13]} Nc6 {[%emt 0:01:31]} 23. g4 {[%emt 0:03:00]} Nb4 {[%emt 0:01:05] Weighted Error Value: White=0.53/Black=0.08 (flawless)} 0-1

[Event "1st Uppsala Festival 2022"]
[Site "Uppsala"]
[Date "2022.08.14"]
[Round "9.3"]
[White "Akesson, Ralf"]
[Black "Stefansson, Vignir Vatnar"]
[Result "1-0"]
[ECO "A29"]
[WhiteElo "2427"]
[BlackElo "2461"]
[Annotator "TA"]
[PlyCount "61"]
[EventDate "2022.08.09"]
[EventType "tourn"]
[EventCountry "SWE"]
[SourceTitle "playchess.com"]
[Source "ChessBase"]
[SourceQuality "1"]
[TimeControl "5400+30"]

{[%evp 21,61,13,34,23,8,19,15,0,7,0,25,25,61,38,92,63,104,71,98,65,100,62,56,43,120,105,282,265,270,272,344,350,348,356,352,345,350,268,367,357,658,639]} 1. c4 {[%emt 0:00:22]} e5 {[%emt 0:01:06]} 2. Nc3 {[%emt 0:00:17]} Nf6 {[%emt 0:00:10]} 3. Nf3 {[%emt 0:00:23]} Nc6 {[%emt 0:00:06]} 4. g3 {[%emt 0:00:44]} d5 {[%emt 0:00:17]} 5. cxd5 {[%emt 0:00:09]} Nxd5 {[%emt 0:00:02]} 6. Bg2 {[%emt 0:00:19]} Nb6 {[%emt 0:00:55]} 7. O-O {[%emt 0:01:53]} Be7 {[%emt 0:00:55]} 8. d3 {[%emt 0:03:51]} O-O {[%emt 0:00:09]} 9. a3 {[%emt 0:03:28]} Re8 {[%emt 0:03:16]} 10. b4 {[%emt 0:07:54]} a5 {[%emt 0:00:50]} 11. b5 {[%emt 0:00:16]} Nd4 {[%emt 0:01:36]} 12. e3 {[%emt 0:03:25] A29: English Opening: Four Knights Variation with 4 g3.} Nxf3+ {[%emt 0:02:30]} 13. Bxf3 {[%emt 0:00:20]} a4 {[%emt 0:00:18]} 14. Qe2 {[%emt 0:09:03] [#] The position is equal.} Rb8 $146 {[%emt 0:02:38]} ({Predecessor:} 14... Ra7 15. Bb2 Be6 16. Rfc1 Nd7 17. Nd5 Bd6 18. Rc2 Ra5 19. Rac1 Bxd5 20. Bxd5 Rxb5 {0-1 (31) Benet Catala,A (2155)-Sukandar,I (2378) Gold Coast 2019}) 15. Qc2 {[%emt 0:11:49]} Ra8 {[%emt 0:10:48]} (15... Be6 $5 {[%cal Re6b3]}) 16. Bb2 {[%emt 0:03:43]} Ra7 {[%emt 0:02:20]} 17. Ne2 {[%emt 0:06:19]} Bd6 {[%emt 0:06:06] [#]} (17... Bf8 $14) 18. d4 $1 $16 {[%emt 0:01:05]} exd4 {[%emt 0:05:01]} 19. Nxd4 {[%emt 0:03:15]} Qg5 {[%emt 0:00:04]} 20. Bg2 {[%emt 0:02:34]} Bd7 {[%emt 0:00:29]} 21. Rab1 {[%emt 0:02:24]} Qg6 {[%emt 0:03:12]} 22. Rfc1 {[%emt 0:05:21]} Qh5 {[%emt 0:04:33]} (22... Qxc2 $14 23. Rxc2 f6) 23. e4 {[%emt 0:05:43]} Ra5 $2 {[%emt 0:03:16] [#] Loses the game.} (23... Raa8 $16 {was called for.}) 24. Qc3 $1 $18 {[%emt 0:05:53]} Raa8 {[%emt 0:00:03] [#]} 25. Ne6 $1 {[%emt 0:02:20][%csl Gb2,Ge6][%cal Rc3g7][%mdl 512]} Be5 {[%emt 0:00:03]} (25... Qg6 26. Qxg7+) 26. Qxe5 {[%emt 0:00:24]} Qxe5 {[%emt 0:00:02]} 27. Bxe5 {[%emt 0:00:07] This bishop pair is nice.} Bxe6 {[%emt 0:00:05]} 28. Bxc7 {[%emt 0:00:52]} ({Not} 28. Rxc7 Nc4 $14) 28... Nc4 {[%emt 0:00:02]} 29. Rc3 {[%emt 0:07:39] aiming for Rb4.} b6 {[%emt 0:02:32]} 30. Rb4 {[%emt 0:01:52]} Rec8 $2 {[%emt 0:01:15]} (30... Rac8) 31. Rbxc4 {[%emt 0:01:49] Weighted Error Value: White=0.12 (very precise) /Black=0.52} 1-0

[Event "1st Uppsala Festival 2022"]
[Site "Uppsala"]
[Date "2022.08.14"]
[Round "9.4"]
[White "Johansson, Jan"]
[Black "Larkin, Vladyslav"]
[Result "0-1"]
[ECO "B42"]
[WhiteElo "2306"]
[BlackElo "2455"]
[Annotator "TA"]
[PlyCount "94"]
[EventDate "2022.08.09"]
[EventType "tourn"]
[EventCountry "SWE"]
[SourceTitle "playchess.com"]
[Source "ChessBase"]
[SourceQuality "1"]
[TimeControl "5400+30"]

{[%evp 13,94,33,33,35,35,21,25,34,91,33,78,71,54,50,50,-2,17,24,29,11,19,0,0,-26,-37,-29,-29,-31,-29,-34,-43,-37,-30,-45,-10,-53,-23,-45,-41,-40,-41,-36,-41,-80,-80,-80,0,-135,-129,-97,0,-66,-68,-45,0,0,0,-29,-33,-113,-113,-168,-136,-170,-153,-400,-408,-381,-251,-251,-251,-251,-193,-277,-302,-391,-129,-449,-460,-543,0,-589,-575]} 1. e4 {[%emt 0:00:04]} c5 {[%emt 0:00:11]} 2. Nf3 {[%emt 0:00:06]} e6 {[%emt 0:00:06]} 3. d4 {[%emt 0:00:09]} cxd4 {[%emt 0:00:04]} 4. Nxd4 {[%emt 0:00:05]} a6 {[%emt 0:00:09]} 5. Bd3 {[%emt 0:00:23]} Qc7 {[%emt 0:00:06]} 6. O-O {[%emt 0:00:53]} Nf6 {[%emt 0:00:03]} 7. Qe2 {[%emt 0:02:46]} Bd6 {[%emt 0:00:20]} 8. Nf3 {[%emt 0:01:52] B42: Sicilian: Kan Variation: 5 Bd3.} Nc6 {[%emt 0:00:48] Inhibits e5.} 9. Nbd2 {[%emt 0:04:09]} Ng4 {[%emt 0:06:09]} 10. h3 {[%emt 0:05:22] [#] White has an edge.} h5 $146 {[%emt 0:01:47]} (10... Nge5 $14) ({Predecessor:} 10... Nge5 11. Nxe5 Nxe5 12. Nc4 Nxc4 13. Bxc4 O-O 14. Bd3 Bh2+ 15. Kh1 Bf4 16. Bxf4 Qxf4 {1-0 (45) Podgursky,S (2235)-Wagener,A (2203) Kishinev 2001}) 11. Nc4 {[%emt 0:01:25]} (11. hxg4 $6 hxg4 12. g3 gxf3 13. Nxf3 b5 $11) (11. c3 $16) 11... Bh2+ {[%emt 0:11:22]} 12. Kh1 {[%emt 0:02:37]} b5 {[%emt 0:00:06]} 13. Ne3 {[%emt 0:04:19]} Bd6 {[%emt 0:00:30][%cal Od6e7]} 14. g3 {[%emt 0:12:11]} (14. a4 $14 b4 15. Nc4) 14... Nxe3 {[%emt 0:02:49]} 15. Bxe3 {[%emt 0:00:12]} Bb7 {[%emt 0:00:05]} 16. a4 {[%emt 0:04:56]} b4 {[%emt 0:01:18]} 17. Kg1 {[%emt 0:02:33]} Ne5 {[%emt 0:12:46]} 18. Bd4 {[%emt 0:02:48]} Nxf3+ {[%emt 0:18:17]} 19. Qxf3 {[%emt 0:00:05]} h4 {[%emt 0:00:33][%cal Rh4g3]} 20. g4 $1 {[%emt 0:03:53]} (20. Bxg7 Rg8 21. Bf6 (21. Qf6 $2 Be7 $19) 21... hxg3 $19) 20... Bh2+ {[%emt 0:00:25]} 21. Kh1 {[%emt 0:04:35]} Be5 {[%emt 0:00:55]} 22. Qe3 {[%emt 0:01:30]} Bf4 {[%emt 0:16:20]} 23. Qf3 {[%emt 0:06:42]} f6 {[%emt 0:03:44]} 24. Rae1 {[%emt 0:05:24]} O-O {[%emt 0:05:43]} 25. b3 {[%emt 0:08:43][%cal Oa4a5]} g5 {[%emt 0:01:28]} 26. Re2 {[%emt 0:02:08]} a5 {[%emt 0:00:53]} 27. Rd1 {[%emt 0:00:19]} Rad8 {[%emt 0:06:08]} 28. Kg1 {[%emt 0:01:17]} d5 {[%emt 0:02:24] Threatens to win with ...Bh2+.} 29. Ree1 {[%emt 0:03:37]} Rd7 {[%emt 0:03:01]} (29... e5 $17 30. Be3 Bxe3 31. fxe3 Kg7) 30. Be3 {[%emt 0:01:56]} (30. exd5 $11 e5 31. Be3) 30... Bh2+ {[%emt 0:00:28]} 31. Kf1 {[%emt 0:00:18]} Qe5 {[%emt 0:02:52] Black is more active.} (31... Be5 $1 $17 {[%cal Re5c3] ...Bc3 is the strong threat.} 32. Bb5 Rdf7 33. exd5 Bc3) 32. exd5 {[%emt 0:05:25]} (32. Bd4 $1 $11 Qxd4 33. Bb5 dxe4 34. Bxd7) 32... Bxd5 $15 {[%emt 0:00:03]} 33. Qe2 {[%emt 0:00:08]} Bf4 {[%emt 0:04:01]} (33... Qc7 $5 {[%cal Rc7b7]} 34. Bc4 Bxc4 35. Qxc4 Qxc4+ 36. bxc4 Rc7 $15) 34. Bb5 {[%emt 0:02:53]} Rdf7 {[%emt 0:00:31]} (34... Qe4 $2 35. f3 Qh7 36. Bxd7 Qxd7 37. Bxf4 gxf4 38. Qf2 $18) 35. Bxf4 {[%emt 0:04:37]} Qxf4 {[%emt 0:00:06]} 36. Qe3 {[%emt 0:00:54]} (36. Bc4 $15) 36... Qh2 $40 {[%emt 0:00:47][%mdl 128] Black has strong attack.} 37. Bc4 {[%emt 0:05:49]} (37. Rxd5 $17 exd5 38. Bc6) 37... Qg2+ $19 {[%emt 0:00:04]} 38. Ke2 {[%emt 0:00:10]} Rc8 {[%emt 0:00:28]} 39. Rxd5 {[%emt 0:01:11]} (39. Rd4 $17) 39... exd5 {[%emt 0:00:23]} 40. Qe6 {[%emt 0:00:05]} Rc5 {[%emt 0:01:20]} 41. Bd3 {[%emt 0:00:42]} d4 {[%emt 0:00:33] And now ...Re5+ would win.} (41... Qxh3 42. Kd2 (42. Bg6 Rcc7 $17) 42... Qf3 43. Qe8+ Kg7 44. Re7 Qf4+ 45. Kd1 Qxg4+ 46. Be2 Qd4+ 47. Bd3 Rxe7 48. Qxe7+ Kg8 49. Qe8+ Kg7 50. Qe7+ Kg8 51. Qe8+ Kg7 52. Qe7+ $11) 42. Kd1 {[%emt 0:00:18]} Kg7 {[%emt 0:00:33] Prevents Bh7.} ({Weaker is} 42... Qxf2 43. Qe8+ (43. Bg6 Qf3+ 44. Kc1 Qb7 $11) 43... Kg7 44. Re7 Rxe7 45. Qxe7+ Kg8 46. Qxc5 $11) 43. Kc1 {[%emt 0:01:13]} (43. Re2 $142) 43... Qxf2 {[%emt 0:00:46]} 44. Kb1 {[%emt 0:00:14] [#]} Qf4 $2 {[%emt 0:00:24]} (44... Rc3 $1 $19 {and Black stays clearly on top.} 45. Qe4 {[#]} Rxd3 $1 {[%mdl 512]} 46. cxd3 Qg3) 45. Rf1 $2 {[%emt 0:00:37][%mdl 8192]} (45. Qe8 $17 {nothing else works.} Re5 46. Rxe5 Qxe5 47. Qd8) 45... Qe5 {[%emt 0:00:21]} 46. Qb6 {[%emt 0:00:11]} Re7 $2 {[%emt 0:00:27]} (46... Rc3 $19 47. Qb5 Qxb5 48. axb5 Re7) 47. Ka2 $2 {[%emt 0:00:21][%mdl 8192]} (47. Rxf6 $1 $11 Qxf6 48. Qxc5) 47... Re6 {[%emt 0:00:21] Weighted Error Value: White=0.63/Black=0.35} 0-1

[Event "1st Uppsala Festival 2022"]
[Site "Uppsala"]
[Date "2022.08.14"]
[Round "9.5"]
[White "Lindberg, Bengt"]
[Black "Peng, Li Min"]
[Result "1/2-1/2"]
[ECO "C42"]
[WhiteElo "2370"]
[BlackElo "2516"]
[Annotator "TA"]
[PlyCount "73"]
[EventDate "2022.08.09"]
[EventType "tourn"]
[EventCountry "SWE"]
[SourceTitle "playchess.com"]
[Source "ChessBase"]
[SourceQuality "1"]
[TimeControl "5400+30"]

{[%evp 14,73,11,6,14,2,14,8,3,2,2,0,0,0,0,0,0,0,0,0,0,0,0,0,0,0,0,0,0,0,0,0,0,0,0,0,0,0,0,0,0,0,0,0,0,0,0,0,0,0,0,0,0,0,0,0,0,0,0,0,0,0]} 1. e4 {[%emt 0:00:03]} e5 {[%emt 0:00:07]} 2. Nf3 {[%emt 0:00:17]} Nf6 {[%emt 0:00:05][%cal Bg8f6,Bf6e4,Be4c3][%mdl 32]} 3. Nxe5 {[%emt 0:00:29]} d6 {[%emt 0:00:03]} 4. Nf3 {[%emt 0:00:11]} Nxe4 {[%emt 0:00:04]} 5. Qe2 {[%emt 0:00:15]} Qe7 {[%emt 0:00:04]} 6. Nc3 {[%emt 0:04:30]} Nxc3 {[%emt 0:00:08]} 7. dxc3 {[%emt 0:00:20]} Qxe2+ {[%emt 0:00:11]} 8. Bxe2 {[%emt 0:00:08] The position is equal.} Nc6 {[%emt 0:00:08] C42: Petroff Defence: 3 Nxe5 and unusual White 3rd moves.} 9. Be3 {[%emt 0:00:56]} Be7 {[%emt 0:00:04]} 10. Nd4 {[%emt 0:05:27]} Nxd4 {[%emt 0:02:14]} 11. cxd4 {[%emt 0:01:23]} Bf5 {[%emt 0:01:55]} 12. O-O-O {[%emt 0:04:52] [#]} d5 $146 {[%emt 0:00:27]} ({Predecessor:} 12... O-O-O) 13. h4 {[%emt 0:03:05]} h5 {[%emt 0:00:12]} 14. Bf4 {[%emt 0:04:52]} Kd7 {[%emt 0:00:04]} 15. f3 {[%emt 0:02:37]} Rae8 {[%emt 0:00:17][%cal Oe7h4]} 16. Kd2 {[%emt 0:01:23]} Bd6 {[%emt 0:00:44]} 17. Bxd6 {[%emt 0:01:18]} Kxd6 {[%emt 0:00:03]} 18. Rde1 {[%emt 0:01:58]} a5 {[%emt 0:02:11]} 19. Bd1 {[%emt 0:01:01]} b6 {[%emt 0:01:48]} 20. Rxe8 {[%emt 0:00:36]} Rxe8 $11 {[%emt 0:00:04][%mdl 4096] Endgame KRB-KRB} 21. Re1 {[%emt 0:00:16]} Rh8 {[%emt 0:01:40]} 22. Ke3 {[%emt 0:05:08]} f6 {[%emt 0:01:32]} 23. c3 {[%emt 0:03:22]} c5 {[%emt 0:00:28]} 24. Re2 {[%emt 0:04:10]} Rc8 {[%emt 0:02:59]} 25. Rd2 {[%emt 0:03:24]} c4 {[%emt 0:08:57]} 26. g4 {[%emt 0:02:37]} hxg4 {[%emt 0:00:44]} 27. fxg4 {[%emt 0:00:22]} Re8+ {[%emt 0:00:02]} 28. Kf4 {[%emt 0:02:24]} Bb1 {[%emt 0:00:07]} 29. a3 {[%emt 0:00:08]} Re4+ {[%emt 0:00:06]} 30. Kf3 {[%emt 0:03:52]} Re1 {[%emt 0:00:19]} 31. Bc2 {[%emt 0:00:26]} Bxc2 {[%emt 0:00:16]} 32. Rxc2 {[%emt 0:00:01] KR-KR} b5 {[%emt 0:00:27][%cal Ob5b4]} 33. Re2 {[%emt 0:07:31]} Rf1+ {[%emt 0:00:17]} 34. Rf2 {[%emt 0:01:42]} Re1 {[%emt 0:00:02]} 35. Re2 {[%emt 0:00:09]} Rf1+ {[%emt 0:00:08]} 36. Rf2 {[%emt 0:00:05]} Re1 {[%emt 0:00:13]} 37. Re2 {[%emt 0:37:42] A balanced but interesting game.  Weighted Error Value: White=0.00 (flawless) /Black=0.00 (flawless)} 1/2-1/2